bitfinex/quotes_ETHUSD_20241225
["timestamp","ask_amount","ask_price","bid_price","bid_amount"]
[1735130182199,3.54854188,3485.7,3484.7,3.65228]
[1735130182403,0.06205596,3485.4,3484.7,3.65228]
[1735130182652,2.93100395,3485.6,3484.7,0.7826]
[1735130182860,0.0620298,3485.3,3484.7,0.7826]
[1735130183078,2.86913,3485.4,3484.7,0.7826]
[1735130183271,0.7513,3485.1,3484.4,0.7826]
[1735130183619,2.8696,3484.8,3484.4,0.7826]
[1735130183813,2.93142004,3485.0,3484.4,0.7826]
[1735130184019,0.0619625,3484.7,3484.4,0.7826]
[1735130184324,0.06195998,3484.6,3484.4,0.7826]
[1735130184541,2.86945,3485.0,3484.4,0.7826]
[1735130184777,2.93149752,3484.9,3484.4,0.7826]
[1735130186470,0.06196752,3484.9,3484.4,0.7826]
[1735130186761,1.19333421,3485.1,3484.4,0.7826]
[1735130186976,0.06171618,3484.8,3484.4,0.7826]
[1735130187137,1.19333421,3485.1,3484.4,0.7826]
[1735130187469,2.9311812,3485.0,3484.2,0.55]
[1735130189369,0.0617212,3485.0,3484.2,0.55]
[1735130189580,2.86938,3485.1,3484.2,0.55]
[1735130189863,0.06176259,3484.9,3484.2,0.7826]
[1735130190070,0.0617651,3485.0,3484.2,0.7826]
[1735130190272,4.06262421,3485.2,3484.3,0.47968114]
[1735130190273,0.06176007,3484.8,3484.3,0.47968114]
[1735130190579,0.06175756,3484.7,3484.3,0.47968114]
[1735130190735,4.06271421,3485.1,3484.3,0.47968114]
[1735130191068,0.0617651,3485.0,3484.3,0.47968114]
[1735130191221,0.0617651,3485.0,3484.4,0.46824411]
[1735130191663,0.0617651,3485.0,3484.2,0.7826]
[1735130191664,2.86961,3484.8,3484.2,0.7826]
[1735130191971,0.0617651,3485.0,3483.8,0.55]
[1735130191972,0.06175756,3484.7,3483.8,0.55]
[1735130192174,2.86984,3484.6,3483.7,1.98341908]
[1735130192328,2.93166351,3484.6,3483.7,1.98341908]
[1735130192720,0.7513,3484.5,3483.7,1.98341908]
[1735130192929,0.06173892,3484.4,3483.7,1.98341908]
[1735130193125,0.06173892,3484.4,3483.7,0.7826]
[1735130193360,2.87003,3484.3,3483.7,0.7826]
[1735130193627,0.06173066,3484.3,3483.7,0.7826]
[1735130193827,0.7513,3484.5,3483.7,0.7826]
[1735130194023,0.06155695,3484.2,3483.7,0.7826]
[1735130194336,0.06155443,3484.1,3483.7,0.7826]
[1735130194524,2.87001,3484.3,3483.7,0.7826]
[1735130194525,2.87001,3484.3,3483.7,1.03835542]
[1735130194729,0.06155358,3484.2,3483.7,1.03835542]
[1735130198087,2.93167358,3484.2,3483.7,1.03835542]
[1735130198385,2.87051,3483.7,3483.1,0.7764]
[1735130198552,2.87051,3483.7,3483.1,1.97721908]
[1735130198751,0.06129573,3483.6,3483.1,1.97721908]
[1735130198969,0.8251,3483.9,3483.2,0.37784477]
[1735130199181,2.87044,3483.8,3483.1,1.97721908]
[1735130199383,2.9317554,3483.8,3483.1,1.97721908]
[1735130199551,2.87051,3483.7,3483.1,1.97721908]
[1735130199754,2.87071,3483.5,3483.1,0.7764]
[1735130199960,2.93201703,3483.4,3482.7,1.20081908]
[1735130200134,0.8251,3483.3,3482.7,1.20081908]
[1735130200334,0.06119319,3483.2,3482.7,1.20081908]
[1735130201438,0.8251,3483.6,3482.6,0.7764]
[1735130201637,1.19333421,3483.9,3482.6,0.7764]
[1735130201638,0.06081457,3483.1,3483.0,3.42108]
[1735130201893,1.19333421,3483.9,3483.1,1.3264]
[1735130202387,0.06064947,3483.8,3483.1,0.7764]
[1735130202755,2.93108947,3483.8,3483.1,0.7764]
[1735130203340,0.06064947,3483.8,3483.1,0.7764]
[1735130203540,2.87028,3484.0,3483.1,0.7764]
[1735130203852,0.06055045,3483.9,3483.1,1.141164]
[1735130204194,0.06072851,3483.8,3483.1,0.7764]
[1735130204344,2.87022,3484.1,3483.1,0.7764]
[1735130204540,2.93103354,3484.0,3483.2,0.364748]
[1735130204740,2.87038,3483.9,3483.1,0.7764]
[1735130204943,0.06080271,3483.8,3483.2,0.57870698]
[1735130205291,1.19333421,3484.1,3483.3,0.7764]
[1735130205456,0.06078771,3483.7,3483.4,0.419725]
[1735130205646,1.19333421,3484.1,3483.4,0.419725]
[1735130205842,0.06079661,3483.6,3483.5,0.55]
[1735130206089,1.19333421,3484.2,3483.5,3.42067]
[1735130206585,1.19333421,3484.2,3483.3,0.7764]
[1735130206586,0.06083389,3484.1,3483.3,0.7764]
[1735130206768,0.06083389,3484.1,3483.4,0.364738]
[1735130206979,3.75616389,3484.1,3483.3,0.7764]
[1735130207677,2.93106389,3484.1,3483.3,0.7764]
[1735130208779,0.06083389,3484.1,3483.3,0.7764]
[1735130209163,0.06083389,3484.1,3483.4,0.42211235]
[1735130210082,0.06083389,3484.1,3483.3,0.7764]
[1735130210288,2.87035,3483.9,3483.3,0.7764]
[1735130210671,0.06076807,3483.8,3483.3,0.7764]
[1735130211483,0.06076807,3483.8,3483.1,0.57373349]
[1735130211665,0.87766807,3483.8,3483.1,0.57373349]
[1735130211866,0.87766807,3483.8,3483.1,0.99475184]
[1735130215110,3.74810807,3483.8,3483.1,0.99475184]
[1735130215312,0.87766807,3483.8,3482.7,3.797]
[1735130215621,0.06076807,3483.8,3483.3,2.87083]
[1735130215824,0.7878,3484.1,3483.4,0.797]
[1735130215982,0.05970655,3483.7,3483.4,0.797]
[1735130216168,3.65799,3484.1,3483.0,1.347]
[1735130216378,0.05968194,3484.0,3483.1,0.47812085]
[1735130216888,0.05968194,3484.0,3483.0,0.797]
[1735130217087,0.7878,3483.9,3483.0,0.797]
[1735130217283,2.87055,3483.7,3483.0,0.797]
[1735130217624,0.05969279,3483.6,3483.0,0.797]
[1735130218026,0.05969279,3483.6,3482.8,0.56306849]
[1735130218179,2.87071,3483.5,3482.7,0.797]
[1735130218505,0.0596245,3483.5,3482.7,1.463847]
[1735130218702,0.0596245,3483.5,3483.1,2.87098]
[1735130218867,0.7878,3483.9,3483.1,2.87098]
[1735130219067,0.05958416,3483.4,3483.1,2.87098]
[1735130219282,0.7878,3483.9,3482.7,4.335177]
[1735130219283,0.7878,3483.9,3482.9,2.87114]
[1735130219714,0.05957138,3483.8,3482.9,2.87114]
[1735130220218,0.05957138,3483.8,3482.8,0.79154946]
[1735130220517,0.05957138,3483.8,3482.8,3.66271946]
[1735130220936,2.93001138,3483.8,3482.8,3.66271946]
[1735130221071,2.93001138,3483.8,3482.9,0.50400371]
[1735130223534,0.8092,3483.7,3482.9,0.50400371]
[1735130223853,2.87083,3483.4,3482.2,2.87169]
[1735130223992,0.8092,3483.3,3482.2,2.87169]
[1735130224326,0.86870802,3483.3,3482.2,2.87169]
[1735130224633,3.73956802,3483.3,3482.2,2.87169]
[1735130225188,0.86870802,3483.3,3482.1,0.7645]
[1735130225391,2.87102,3483.1,3482.3,0.57827333]
[1735130225845,0.05923387,3483.0,3482.3,0.57827333]
[1735130226192,0.8092,3483.2,3482.3,0.57827333]
[1735130226440,0.05915108,3482.9,3482.3,0.57827333]
[1735130226608,0.8092,3483.2,3482.3,0.57827333]
[1735130226807,0.05914856,3482.8,3482.3,0.57827333]
[1735130227136,3.68014,3483.2,3482.3,0.99972466]
[1735130227290,0.05914604,3482.7,3482.3,0.57827333]
[1735130227491,0.8092,3483.0,3482.0,2.87189]
[1735130227692,0.8092,3482.5,3481.8,3.63656]
[1735130227923,0.8092,3482.5,3481.9,2.87198]
[1735130228136,0.8092,3482.5,3482.2,0.57338538]
[1735130228310,0.05908709,3482.4,3481.6,3.43980485]
[1735130228522,0.8092,3482.5,3481.7,0.42043048]
[1735130228756,0.05908457,3482.3,3481.7,0.42043048]
[1735130229057,1.19507481,3483.5,3481.8,3.63657]
[1735130229058,0.8092,3482.9,3481.8,3.63657]
[1735130229352,0.05904779,3482.2,3481.8,0.7645]
[1735130229522,0.8092,3482.3,3481.7,0.42043048]
[1735130229724,0.8092,3482.3,3481.6,0.56763485]
[1735130229928,0.05904779,3482.2,3481.6,0.56763485]
[1735130231711,0.8092,3482.0,3481.1,0.55]
[1735130231913,2.87201,3481.9,3481.0,3.58240812]
[1735130232137,2.87201,3481.9,3481.1,1.02224368]
[1735130232340,0.0584167,3481.8,3481.1,1.02224368]
[1735130232926,0.0584167,3481.8,3481.0,0.58240812]
[1735130233742,2.9305167,3481.8,3481.0,0.58240812]
[1735130233922,2.8721,3481.8,3481.0,0.58240812]
[1735130234247,0.8092,3481.4,3481.0,0.58240812]
[1735130234561,0.8092,3481.4,3480.6,3.79322581]
[1735130234764,0.05800966,3481.3,3480.7,0.96691345]
[1735130234927,0.8092,3481.4,3480.7,0.96691345]
[1735130235454,0.05784191,3481.3,3480.7,0.96691345]
[1735130236055,0.05784191,3481.3,3480.8,0.58016521]
[1735130236370,0.05784191,3481.3,3480.9,0.23115787]
[1735130236855,0.05784191,3481.3,3480.6,0.7645]
[1735130237166,0.05784191,3481.3,3480.7,0.55]
[1735130237371,0.05784191,3481.3,3480.9,2.87279]
[1735130237668,0.8092,3481.7,3480.9,2.87279]
[1735130237968,0.05697354,3481.2,3480.9,2.87279]
[1735130238166,0.8092,3481.7,3481.0,0.40078436]
[1735130238675,0.0570296,3481.6,3481.0,0.40078436]
[1735130240272,2.9292696,3481.6,3480.7,1.1350536]
[1735130241723,2.9292696,3481.6,3480.7,0.55]
[1735130243102,0.0570296,3481.6,3480.7,0.55]
[1735130243309,3.64649,3481.5,3480.4,3.55]
[1735130243676,0.0570186,3481.4,3480.4,6.42321]
[1735130243872,0.0570186,3481.4,3480.6,0.55]
[1735130244603,0.0570186,3481.4,3480.6,1.1288871]
[1735130245362,3.64649,3481.5,3480.6,1.1288871]
[1735130247329,0.7741,3481.5,3480.6,1.1288871]
[1735130247842,0.05699867,3481.4,3480.7,0.826]
[1735130248136,0.7741,3482.5,3481.4,0.826]
[1735130248440,0.7741,3482.5,3480.9,2.87282]
[1735130248441,0.05134073,3482.4,3482.3,2.87162]
[1735130248742,1.19507481,3482.7,3482.2,0.826]
[1735130249036,0.05134807,3482.4,3482.2,0.826]
[1735130249180,1.19507481,3482.7,3482.3,0.42765332]
[1735130249382,0.05185256,3482.6,3482.3,0.42765332]
[1735130249788,0.7741,3483.1,3482.3,0.42765332]
[1735130250036,0.82596263,3483.0,3482.3,0.42765332]
[1735130250233,0.82596263,3483.0,3482.0,3.55]
[1735130250402,0.7741,3483.0,3482.0,6.4219]
[1735130251190,0.7741,3483.0,3482.2,0.55]
[1735130251396,0.7741,3483.0,3482.3,0.02871288]
[1735130251588,0.05186069,3482.9,3482.3,0.02871288]
[1735130251792,0.05186069,3482.9,3482.4,0.34505329]
[1735130252097,0.05186069,3482.9,3482.7,2.87131]
[1735130252448,0.7741,3483.9,3482.8,3.42122]
[1735130252591,0.7741,3483.9,3482.9,0.02870807]
[1735130252797,0.7741,3483.9,3483.1,1.376]
[1735130252997,0.05220416,3483.8,3483.1,1.376]
[1735130253602,0.05220416,3483.8,3483.3,2.87083]
[1735130253840,0.05220416,3483.8,3483.4,0.55]
[1735130254836,0.05220416,3483.8,3483.4,0.974683]
[1735130255150,0.05220416,3483.8,3483.5,0.02870308]
[1735130255357,0.05220416,3483.8,3483.4,3.845433]
[1735130255571,0.7741,3483.9,3483.4,3.845433]
[1735130255853,0.05274627,3483.8,3483.4,0.974683]
[1735130256053,0.7741,3483.9,3483.2,3.44961299]
[1735130256360,0.05274375,3483.7,3483.2,0.57870299]
[1735130256538,0.05275009,3483.8,3483.6,2.87059]
[1735130256852,2.86976,3484.7,3483.7,0.02870109]
[1735130257058,0.7577,3484.6,3483.7,0.79700109]
[1735130257416,0.7577,3484.6,3483.8,0.55]
[1735130257654,1.19507481,3485.4,3483.8,0.55]
[1735130257807,1.19507481,3485.4,3484.3,0.55]
[1735130258013,1.19507481,3485.4,3484.7,0.55]
[1735130258249,1.19507481,3485.4,3484.7,0.89484317]
[1735130259348,2.86919,3485.3,3484.3,0.55]
[1735130259549,0.7577,3485.5,3484.5,0.55]
[1735130260868,3.62674,3485.5,3484.6,0.55]
[1735130262166,0.7577,3485.5,3484.6,0.55]
[1735130262367,0.7577,3485.5,3484.7,0.43123387]
[1735130262588,2.86852,3486.2,3485.0,0.55]
[1735130262790,2.86854,3486.1,3485.1,0.02868854]
[1735130262973,2.86854,3486.1,3485.0,0.55]
[1735130263180,2.86854,3486.1,3485.1,0.02868853]
[1735130263379,2.86863,3486.0,3485.1,0.45033838]
[1735130263908,2.86841,3486.3,3485.2,0.55]
[1735130264205,2.86841,3486.3,3485.3,0.02868588]
[1735130264401,2.86841,3486.3,3485.0,0.55]
[1735130264701,2.86845,3486.2,3485.0,0.55]
[1735130264866,2.86862,3486.0,3485.2,0.55]
[1735130265052,2.86837,3486.3,3485.2,0.55]
[1735130265394,2.86865,3486.0,3485.0,0.55]
[1735130265893,2.86871,3485.9,3485.0,0.55]
[1735130266050,0.7577,3485.8,3485.0,0.55]
[1735130266246,0.7577,3485.8,3485.2,0.55]
[1735130266793,2.86871,3485.9,3485.2,0.55]
[1735130266949,2.86845,3486.2,3485.3,0.7683]
[1735130267391,0.7577,3486.4,3485.4,0.55]
[1735130267392,3.626,3486.4,3485.4,0.55]
[1735130267594,3.626,3486.4,3485.5,0.02868593]
[1735130267752,0.7577,3486.4,3485.6,0.42161659]
[1735130267952,3.626,3486.4,3485.6,0.42161659]
[1735130268268,0.05149549,3486.3,3485.5,0.02868593]
[1735130269693,0.7976,3486.7,3485.7,1.3382]
[1735130269893,0.05178404,3486.2,3485.7,1.3382]
[1735130270095,0.7976,3486.7,3485.7,1.3668832]
[1735130270308,0.05178153,3486.1,3485.7,0.7882]
[1735130270473,0.7976,3486.1,3485.4,0.5787166]
[1735130270648,0.05290385,3486.0,3485.4,0.5787166]
[1735130271167,2.86871,3485.9,3484.9,0.7882]
[1735130271366,2.86871,3485.9,3484.9,1.46849005]
[1735130271679,0.05301867,3485.8,3484.9,1.49717939]
[1735130271848,2.86862,3486.0,3484.9,3.68640934]
[1735130272054,0.05301616,3485.7,3484.9,3.68640934]
[1735130272395,2.86862,3486.0,3485.0,0.55]
[1735130272896,0.05302118,3485.9,3485.0,0.55]
[1735130274403,0.05302118,3485.9,3485.3,0.58162385]
[1735130274586,0.05302118,3485.9,3485.8,0.55]
[1735130274759,0.7976,3486.7,3485.8,0.970704]
[1735130275250,0.05265165,3486.6,3485.8,0.970704]
[1735130278388,2.92077165,3486.6,3485.8,0.970704]
[1735130279518,2.92077165,3486.6,3485.7,0.55]
[1735130279716,0.05265165,3486.6,3485.6,0.55]
[1735130279917,0.7976,3486.7,3485.8,0.55]
[1735130280092,0.0532141,3486.5,3485.8,0.55]
[1735130280418,2.86823,3486.5,3485.5,0.7882]
[1735130280591,0.0532173,3486.4,3485.6,0.42389239]
[1735130280924,2.86823,3486.5,3485.6,0.42389239]
[1735130283021,3.66564,3486.7,3485.7,0.02868549]
[1735130283322,0.05322232,3486.6,3486.0,0.55]
[1735130283524,0.8053,3487.0,3486.1,2.86845]
[1735130283679,0.0531594,3486.5,3486.3,0.55]
[1735130283883,0.8053,3487.4,3486.3,0.55]
[1735130283884,0.8053,3487.4,3486.3,3.41834]
[1735130284084,0.05326003,3486.4,3486.3,3.41834]
[1735130284284,3.67278,3487.4,3486.3,3.41834]
[1735130284529,0.05340267,3486.4,3486.3,3.41834]
[1735130284862,0.8053,3487.4,3486.3,1.0043585]
[1735130285013,2.86776,3487.1,3486.2,0.341845]
[1735130285364,0.05357177,3487.0,3486.2,0.341845]
[1735130286357,2.86816,3486.6,3485.8,0.7834]
[1735130286564,2.8682,3486.5,3485.8,0.7834]
[1735130286865,0.05368863,3486.5,3485.8,0.7834]
[1735130287034,2.86812,3486.6,3485.8,0.7834]
[1735130287215,2.92207066,3486.5,3485.8,0.7834]
[1735130287422,3.67372,3486.3,3485.5,0.7834]
[1735130287926,0.05374472,3486.2,3485.5,0.7834]
[1735130288131,0.05374472,3486.2,3485.6,2.89761648]
[1735130288329,0.8053,3486.6,3485.7,2.86885]
[1735130288547,0.05374221,3486.1,3485.5,3.65239]
[1735130288725,2.86821,3486.5,3485.6,0.42365966]
[1735130288940,0.0537397,3486.0,3485.6,0.42365966]
[1735130289142,2.86828,3486.4,3485.6,0.42365966]
[1735130289356,0.05373719,3485.9,3485.6,0.42365966]
[1735130289519,2.86828,3486.4,3485.6,0.42365966]
[1735130289716,0.05373468,3485.8,3485.7,0.17912663]
[1735130290061,2.86828,3486.4,3485.7,0.17912663]
[1735130290364,0.05373468,3485.8,3485.6,0.42365966]
[1735130290563,2.86828,3486.4,3485.6,0.42365966]
[1735130290735,0.05358956,3485.7,3485.6,0.42365966]
[1735130290917,0.8053,3486.6,3485.6,2.86894]
[1735130291117,3.67343,3486.6,3485.6,2.86894]
[1735130291317,0.05360966,3486.5,3485.6,2.86894]
[1735130291512,0.05360966,3486.5,3485.7,0.42365466]
[1735130291760,0.05360966,3486.5,3485.5,3.65242]
[1735130292456,2.92181966,3486.5,3485.5,3.65242]
[1735130293277,2.92181966,3486.5,3485.5,0.7834]
[1735130293982,0.05360966,3486.5,3485.5,0.7834]
[1735130294181,2.86831,3486.4,3485.5,0.7834]
[1735130294383,2.86831,3486.4,3485.5,1.20707066]
[1735130294548,0.05361445,3486.3,3485.5,1.20707066]
[1735130294947,0.7796,3486.2,3485.5,0.42367066]
[1735130295353,0.05360942,3486.1,3485.5,0.42367066]
[1735130296953,0.05360942,3486.1,3485.5,2.86901]
[1735130297152,0.7796,3486.5,3485.5,2.86901]
[1735130297477,0.05360691,3486.0,3485.7,0.8174]
[1735130297649,0.7796,3486.5,3485.7,0.8174]
[1735130298354,0.05363976,3486.4,3485.7,0.8174]
[1735130298541,0.05363976,3486.4,3485.7,1.24444866]
[1735130299627,0.05363976,3486.4,3485.8,0.57868529]
[1735130299928,0.8244,3487.1,3485.8,2.86878]
[1735130300227,0.05366008,3486.3,3485.9,1.3543]
[1735130300377,2.86788,3486.9,3485.9,1.3543]
[1735130300579,2.86765,3487.2,3486.0,0.422308]
[1735130300795,2.86805,3486.7,3485.9,0.8043]
[1735130301028,2.86789,3486.9,3485.9,3.67299]
[1735130301227,2.86796,3486.8,3485.9,0.8043]
[1735130301395,1.24732573,3486.8,3485.6,0.8043]
[1735130301604,0.8244,3486.4,3485.4,3.45328664]
[1735130301978,0.05363361,3486.3,3485.4,3.45328664]
[1735130303857,0.05363361,3486.3,3485.5,2.86901]
[1735130304235,0.8244,3486.4,3485.5,2.86901]
[1735130304453,0.05187947,3486.2,3485.5,2.86901]
[1735130304755,0.05187696,3486.1,3485.6,0.42575166]
[1735130304904,0.8244,3486.4,3485.6,0.42575166]
[1735130305101,0.05187534,3486.0,3485.6,0.42575166]
[1735130305317,0.8244,3486.4,3485.6,0.42575166]
[1735130305545,0.0518101,3485.9,3485.8,3.41878]
[1735130305746,1.19507481,3486.6,3485.7,0.8043]
[1735130305933,0.0518101,3485.9,3485.4,3.45326664]
[1735130306136,2.8683,3486.4,3485.4,3.45326664]
[1735130306446,0.05180758,3485.8,3485.4,3.45326664]
[1735130306645,0.8244,3486.5,3485.5,0.54586741]
[1735130306848,2.8685,3486.2,3485.4,0.58420664]
[1735130307048,0.8244,3486.1,3485.4,0.58420664]
[1735130307351,0.87600884,3486.1,3485.4,0.58420664]
[1735130309508,0.87600884,3486.1,3485.3,0.8043]
[1735130310456,1.24486097,3486.0,3485.3,0.8043]
[1735130310661,1.24486097,3486.0,3485.4,0.667355]
[1735130310959,0.05146539,3485.9,3485.4,0.667355]
[1735130312060,4.88802481,3486.1,3485.3,0.8043]
[1735130312365,4.88802481,3486.1,3485.1,0.8043]
[1735130312519,0.05148298,3486.0,3485.1,0.8043]
[1735130313064,1.19507481,3485.9,3485.1,0.8043]
[1735130313456,0.05147708,3485.8,3485.1,0.8043]
[1735130313632,0.05147708,3485.8,3485.2,0.367373]
[1735130314059,0.05147708,3485.8,3484.8,4.07063749]
[1735130314262,0.8172,3485.7,3484.9,0.55]
[1735130314618,0.05122499,3485.6,3484.9,0.55]
[1735130314961,0.05122499,3485.6,3484.8,1.96140749]
[1735130315166,0.8172,3485.1,3484.8,1.20110749]
[1735130315660,0.20634998,3485.6,3484.3,3.00276874]
[1735130315661,0.8172,3484.9,3484.6,1.20110749]
[1735130315852,2.86968,3484.7,3484.6,1.20110749]
[1735130316265,0.05086729,3484.7,3484.6,1.20110749]
[1735130316671,0.8172,3484.9,3484.6,1.20110749]
[1735130316970,0.8172,3484.9,3483.9,2.87033]
[1735130316971,1.19507481,3484.8,3483.9,2.87033]
[1735130317116,1.24595709,3484.8,3484.0,0.51969262]
[1735130317318,1.24595709,3484.8,3484.1,0.7603]
[1735130317668,1.24595709,3484.8,3484.7,0.7603]
[1735130318166,0.05088228,3484.8,3484.7,0.7603]
[1735130318403,1.19507481,3485.1,3484.7,1.123314]
[1735130318582,0.05004098,3484.8,3484.7,1.123314]
[1735130318897,1.19507481,3485.1,3484.7,1.123314]
[1735130319105,0.05003741,3484.8,3484.7,1.123314]
[1735130319247,1.19507481,3485.5,3484.7,4.542994]
[1735130319451,0.05005699,3485.4,3484.8,2.86954]
[1735130319683,1.19507481,3485.5,3484.7,1.3103]
[1735130319882,1.19507481,3485.5,3484.9,2.86945]
[1735130320066,0.05027609,3485.4,3485.1,2.86935]
[1735130320267,0.04682214,3485.4,3485.1,2.86935]
[1735130320766,0.04682214,3485.4,3485.0,0.417975]
[1735130320972,1.19507481,3485.7,3484.8,0.55]
[1735130321295,0.05016123,3485.3,3484.8,0.55]
[1735130321479,1.19507481,3486.0,3484.8,0.55]
[1735130321683,0.05030007,3485.6,3484.8,0.55]
[1735130321913,1.19507481,3486.0,3484.8,0.55]
[1735130322101,0.05029941,3485.5,3484.9,0.418001]
[1735130322467,1.19507481,3486.0,3485.0,2.86942]
[1735130322803,2.53869077,3486.0,3485.0,2.86942]
[1735130322970,0.05030946,3485.9,3485.0,2.86942]
[1735130325813,2.91900946,3485.9,3484.9,0.418001]
[1735130326020,3.59139911,3485.9,3484.9,0.418001]
[1735130326607,0.05030946,3485.9,3484.9,3.287471]
[1735130327112,1.24538427,3485.9,3484.9,3.287471]
[1735130327270,0.05030946,3485.9,3484.9,3.287471]
[1735130327875,0.8172,3485.6,3484.9,0.418001]
[1735130328270,0.05045215,3485.5,3484.9,0.418001]
[1735130328575,3.0,3486.9,3484.9,2.86951]
[1735130328576,4.82896422,3485.9,3484.9,2.86951]
[1735130328775,0.05043459,3485.4,3484.7,3.62998]
[1735130328990,4.82896422,3485.9,3484.9,2.86951]
[1735130329191,0.05043207,3485.3,3484.9,2.86951]
[1735130329375,4.82896422,3485.9,3484.9,2.86951]
[1735130329570,0.05043798,3485.2,3485.0,0.417981]
[1735130329777,4.82896422,3485.9,3485.0,0.417981]
[1735130329988,0.05043361,3485.1,3485.0,3.287401]
[1735130330177,1.96025422,3485.9,3485.0,3.287401]
[1735130330486,0.05043361,3485.1,3485.0,3.287401]
[1735130330689,1.96025422,3485.9,3485.0,3.287401]
[1735130330911,0.7607,3485.9,3485.1,0.3837401]
[1735130331211,0.0504512,3485.8,3485.1,0.3837401]
[1735130331712,0.0504512,3485.8,3485.2,0.832]
[1735130331908,0.0504512,3485.8,3485.2,3.7012]
[1735130332112,1.19955422,3486.0,3485.2,3.7012]
[1735130332265,0.0504763,3485.7,3485.3,0.40849401]
[1735130332661,1.19955422,3486.0,3485.3,0.40849401]
[1735130332862,0.05013902,3485.6,3485.3,0.40849401]
[1735130333434,0.05013651,3485.5,3485.3,0.40849401]
[1735130333796,1.19955422,3486.0,3485.3,0.40849401]
[1735130333998,0.05012422,3485.4,3485.3,0.40849401]
[1735130334204,1.19955422,3486.0,3485.3,0.40849401]
[1735130334389,0.04978983,3485.4,3485.3,0.40849401]
[1735130334566,1.19955422,3486.0,3485.3,0.40849401]
[1735130334766,0.04978983,3485.4,3485.3,0.40849401]
[1735130335066,1.19955422,3486.0,3485.3,0.40849401]
[1735130335299,0.04945508,3485.4,3485.3,0.40849401]
[1735130335812,1.19955422,3486.0,3485.3,0.40849401]
[1735130336101,0.04947218,3485.4,3485.3,0.40849401]
[1735130336304,1.19955422,3486.0,3485.3,0.40849401]
[1735130336616,1.19955422,3486.0,3485.2,0.832]
[1735130336769,0.04967715,3485.9,3485.2,0.832]
[1735130339045,1.24923137,3485.9,3485.2,0.832]
[1735130339868,1.24923137,3485.9,3484.9,3.7015]
[1735130340436,1.24923137,3485.9,3484.9,0.832]
[1735130340678,1.24923137,3485.9,3485.0,2.86943]
[1735130341933,0.7607,3485.8,3484.6,0.832]
[1735130342292,0.7607,3485.6,3484.7,0.55]
[1735130342796,3.62988,3485.4,3484.4,1.77742431]
[1735130342935,0.41605123,3485.3,3484.4,1.77742431]
[1735130343135,0.04823346,3485.3,3484.4,1.20187979]
[1735130343345,0.8127,3485.1,3484.4,1.20187979]
[1735130343692,0.8127,3485.1,3484.2,3.70209]
[1735130344068,0.04820002,3485.0,3484.2,1.41449915]
[1735130344288,0.04820002,3485.0,3484.2,0.58249915]
[1735130344483,0.04820002,3485.0,3484.2,1.17917031]
[1735130344794,2.91764002,3485.0,3484.2,1.17917031]
[1735130345001,2.86952,3484.9,3484.0,0.7924]
[1735130345170,0.8608885,3484.8,3484.0,0.7924]
[1735130345526,0.8608885,3484.8,3483.9,3.0]
[1735130345879,0.8608885,3484.8,3483.9,0.02870008]
[1735130346194,0.8608885,3484.8,3484.4,2.86993]
[1735130346195,0.0481885,3484.8,3484.4,2.86993]
[1735130346404,2.01225422,3485.1,3484.4,2.86993]
[1735130346616,0.04788344,3485.0,3484.4,3.211923]
[1735130348624,0.04788344,3485.0,3484.4,0.341993]
[1735130351921,0.04788344,3485.0,3484.5,0.7924]
[1735130353907,0.04788344,3485.0,3484.6,2.86976]
[1735130354106,0.04788344,3485.0,3484.7,0.4004153]
[1735130354306,1.19955422,3485.3,3484.7,3.2700953]
[1735130354847,0.04757967,3485.2,3484.7,3.2700953]
[1735130355213,0.04757967,3485.2,3484.7,0.4004153]
[1735130356458,0.8127,3485.4,3484.7,0.4004153]
[1735130356666,0.04757716,3485.1,3484.7,0.4004153]
[1735130356961,0.8127,3485.4,3484.5,3.66222]
[1735130356962,0.8127,3485.4,3484.8,0.40626353]
[1735130357110,0.04757464,3485.0,3484.5,3.66222]
[1735130357310,0.8127,3485.4,3484.5,3.66222]
[1735130357512,0.04757213,3484.9,3484.5,3.66222]
[1735130357711,0.8127,3485.4,3484.5,3.66222]
[1735130357912,0.04756962,3484.8,3484.5,0.7924]
[1735130358142,0.8127,3485.4,3484.6,3.249]
[1735130358323,0.8127,3485.4,3484.6,0.37924]
[1735130358523,0.04758219,3485.3,3484.4,2.86992]
[1735130359012,0.04758219,3485.3,3484.2,1.95547979]
[1735130359216,0.7879,3485.2,3484.2,1.20187979]
[1735130359449,3.65767,3484.6,3484.2,1.20187979]
[1735130359651,0.7879,3484.6,3484.2,1.20187979]
[1735130359880,0.04765392,3484.5,3484.2,1.20187979]
[1735130360083,0.04765392,3484.5,3483.7,4.07237979]
[1735130360288,0.04765392,3484.5,3483.7,5.03244225]
[1735130361601,0.04765392,3484.5,3483.7,3.83056246]
[1735130361806,0.04765392,3484.5,3483.7,0.96006246]
[1735130362509,0.04765392,3484.5,3483.7,3.83054246]
[1735130362717,0.04765392,3484.5,3483.7,2.87048]
[1735130363679,0.04765392,3484.5,3483.5,3.42066]
[1735130363885,0.7879,3484.4,3483.6,2.87055]
[1735130364314,0.04741515,3484.3,3483.6,2.87055]
[1735130364470,0.04741515,3484.3,3483.7,0.47422156]
[1735130366930,0.04741515,3484.3,3483.8,2.87042]
[1735130368901,0.04741515,3484.3,3483.7,0.47422156]
[1735130369099,0.7879,3484.2,3483.0,4.20187979]
[1735130369417,2.91710575,3484.1,3483.1,2.87097]
[1735130370884,0.04689575,3484.1,3483.2,2.87091]
[1735130371639,0.04689575,3484.1,3483.4,0.7536]
[1735130371788,0.04689575,3484.1,3483.6,0.55]
[1735130371988,0.04689575,3484.1,3483.7,2.87046]
[1735130372234,0.04689575,3484.1,3483.8,0.342046]
[1735130373485,0.7879,3484.2,3483.8,0.342046]
[1735130373837,0.0464657,3484.1,3483.8,0.342046]
[1735130374005,0.7879,3484.2,3483.8,0.342046]
[1735130374333,0.0464657,3484.1,3483.8,0.342046]
[1735130374504,0.0464657,3484.1,3483.9,0.3762506]
[1735130374704,0.7879,3484.2,3483.9,0.3762506]
[1735130375158,0.04661791,3484.1,3483.9,0.3762506]
[1735130375470,0.7879,3484.2,3483.9,0.3762506]
[1735130375980,0.04660952,3484.1,3483.9,0.3762506]